lending/lending_fUSD_20240510
["ID","MTS","AMOUNT","RATE_DAILY","PERIOD"]
[326771455,1715340633494,-500.0,0.00024657,2]
[326771456,1715340633507,-250.0,0.00024658,2]
[326771457,1715340633516,-500.0,0.00024931,3]
[326771458,1715340633525,-205.0,0.0002496,2]
[326771459,1715340633535,-9144.88180711,0.0002499,2]
[326771460,1715340633544,-471.94368644,0.00025,2]
[326771461,1715340633555,-155.0,0.00025,2]
[326771462,1715340633564,-2219.93951707,0.00025,2]
[326771463,1715340633574,-925.8669637,0.00025,2]
[326771464,1715340633584,-5504.99999903,0.00025,7]
[326771465,1715340633593,-266.07799999,0.00025101,2]
[326771466,1715340633602,-328.62136323,0.00025205,4]
[326771467,1715340633611,-205.0,0.0002552,2]
[326771468,1715340633621,-808.0,0.00025528,2]
[326771469,1715340633630,-312.787,0.00025528,2]
[326771470,1715340633640,-474.344,0.00025528,2]
[326771471,1715340633649,-619.327,0.00025528,2]
[326771472,1715340633659,-425.705,0.00025528,2]
[326771473,1715340633669,-154.806,0.00025528,2]
[326771474,1715340633679,-214.635,0.00025528,2]
[326771475,1715340633688,-1567.228,0.00025528,2]
[326771476,1715340633697,-2479.961,0.00025528,2]
[326771477,1715340633707,-1155.342,0.00025528,2]
[326771478,1715340633716,-219.0,0.00025528,2]
[326771479,1715340633726,-1664.127,0.00025528,2]
[326771480,1715340633735,-448.756,0.00025528,2]
[326771481,1715340633744,-3151.0,0.00025528,2]
[326771482,1715340633754,-5909.0,0.00025528,2]
[326771483,1715340633763,-288.0,0.00025528,2]
[326771484,1715340633773,-971.0,0.00025528,2]
[326771485,1715340633782,-1396.0,0.00025528,2]
[326771486,1715340633791,-2011.4,0.00025528,2]
[326771487,1715340633800,-153.48988813,0.00025559,2]
[326771488,1715340633809,-162.11201578,0.00025607,2]
[326771489,1715340633818,-153.90953064,0.00025812,2]
[326771490,1715340634124,-603.0,0.00025859,2]
[326771491,1715340634140,-155.3366236,0.00025899,2]
[326771492,1715340634151,-218.98273529,0.0002595,2]
[326771493,1715340634160,-205.0,0.0002608,2]
[326771494,1715340634170,-800.0,0.00026137,2]
[326771495,1715340634180,-157.37182555,0.0002616,2]
[326771496,1715340634190,-218.98273529,0.00026223,2]
[326771497,1715340634204,-573.86873251,0.00026364,2]
[326771498,1715340634218,-2181.77493166,0.00026366,2]
[326771499,1715340634228,-400.0,0.00026419,2]
[326771500,1715340634237,-600.0,0.00026425,2]
[326771501,1715340634247,-800.0,0.00026438,2]
[326771502,1715340634256,-1014.91159493,0.0002646,2]
[326771503,1715340634266,-1132.79709865,0.0002646,2]
[326771504,1715340634276,-165.5,0.00026466,120]
[326771505,1715340634289,-12641.25830243,0.000265,2]
[326771506,1715340634300,-1561.86172371,0.0002659,2]
[326771507,1715340634309,-205.0,0.0002664,2]
[326771508,1715340634319,-3500.94133622,0.00026756,2]
[326771509,1715340634329,-313.65922066,0.000268,2]
[326771510,1715340634339,-162.11201578,0.00026801,2]
[326771511,1715340634348,-156.75889808,0.0002684,2]
[326771512,1715340634358,-8095.71460555,0.000269,2]
[326771513,1715340634368,-458.7701,0.000269,2]
[326771514,1715340634378,-100000.0,0.000269,2]
[326771515,1715340634387,-170.97519332,0.000269,2]
[326771516,1715340634397,-7500.0,0.000269,2]
[326771517,1715340634407,-155.56872018,0.000269,2]
[326771518,1715340634416,-169.7463935,0.000269,2]
[326771519,1715340634426,-156.0475967,0.00026998,2]
[326771520,1715340634435,-9863.14605274,0.00026998,2]
[326771521,1715340634445,-521.73158779,0.00026998,2]
[326771522,1715340634455,-642.57733329,0.00026998,2]
[326771523,1715340634466,-343.85597693,0.00026998,2]
[326771524,1715340634475,-1284.66138611,0.00026998,2]
[326771525,1715340634484,-155.0,0.00026998,2]
[326771526,1715340634494,-175.47369555,0.00026998,2]
[326771527,1715340634504,-3415.0326858,0.00026998,2]
[326771528,1715340634514,-2360.88589892,0.00026998,2]
[326771529,1715340634524,-3084.72177879,0.00026998,2]
[326771530,1715340634535,-155.24931679,0.00026998,2]
[326771531,1715340634545,-311.34410862,0.00026998,2]
[326771532,1715340634562,-788.28581066,0.00026998,2]
[326771533,1715340634572,-267.4272769,0.00026998,2]
[326771534,1715340634582,-155.0,0.00026998,2]
[326771535,1715340634592,-1770.43044414,0.00026998,2]
[326771536,1715340634602,-217.09655827,0.00026999,2]
[326771537,1715340634612,-158.47223291,0.00026999,2]
[326771538,1715340634624,-1021.6383433,0.00026999,10]
[326771539,1715340634634,-1021.6383433,0.00026999,10]
[326771540,1715340634644,-68675.62804002,0.00026999,7]
[326771541,1715340634696,-135548.79260205,0.00026999,7]
[326771542,1715340634709,-627.41046944,0.00026999,7]
[326771543,1715340634721,-472.04,0.00026999,7]
[326771544,1715340634734,-3834.88345,0.00026999,7]
[326771545,1715340634747,-5813.684408,0.00026999,7]
[326771546,1715340634759,-541.78695924,0.00026999,7]
[326771547,1715340634772,-833.50211302,0.00026999,7]
[326771548,1715340634784,-539.69020108,0.00026999,7]
[326771549,1715340634796,-969.45652537,0.00026999,7]
[326771550,1715340634808,-3367.93087916,0.00026999,7]
[326771551,1715340634842,-1169.32315803,0.00026999,7]
[326771552,1715340634855,-732.11112739,0.00026999,7]
[326771553,1715340634867,-1616.31417857,0.00026999,7]
[326771554,1715340634879,-8769.60922863,0.00026999,7]
[326771575,1715340639043,-289.59,0.00023126,2]
[326771576,1715340639054,-2295.0,0.00025528,2]
[326771577,1715340639064,-1059.0,0.00025528,2]
[326771578,1715340639074,-1081.32757458,0.00026459,2]
[326771579,1715340639084,-124497.08242528,0.00026999,7]
[326771581,1715340639135,-1260.0,0.00025528,2]
[326771582,1715340639145,-1041.64505872,0.00026999,7]
[326771583,1715340639156,-53522.356669,0.00026999,7]
[326771584,1715340639169,-1511.30272506,0.00026999,7]
[326771585,1715340639333,-18818.52960502,0.00026999,7]
[326771586,1715340639345,-396.96657,0.00026999,7]
[326771587,1715340639357,-6413.60156059,0.00026999,7]
[326771588,1715340639369,-1306.14903882,0.00026999,7]
[326771589,1715340639383,-1291.06,0.00026999,7]
[326771591,1715340640390,-550.0,0.00025559,2]
[326771592,1715340640401,-129221.87580201,0.00026999,7]
[326771593,1715340640412,-644561.77166525,0.00027,2]
[326771594,1715340640680,-87788.93734499,0.00027,2]
[326771595,1715340641921,-512064.0000004,0.00027,2]
[326771596,1715340641936,-1212.43687454,0.00027,2]
[326771629,1715340644386,-1227.0,0.00025528,2]
[326771630,1715340644396,-1189.70863231,0.00027,2]
[326771631,1715340644407,-316.42954909,0.00027,2]
[326771632,1715340644419,-1222.471622,0.00027,2]
[326771633,1715340644432,-338.72698102,0.00027,2]
[326771634,1715340644444,-38699.98383547,0.00027,2]
[326771635,1715340644454,-345.55,0.00027,2]
[326771636,1715340644463,-281.02,0.00027,2]
[326771637,1715340644474,-234.06613459,0.00027,2]
[326771638,1715340644483,-1038.22024424,0.00027,2]
[326771639,1715340644493,-1742.10655295,0.00027,2]
[326771640,1715340644502,-2215.11343661,0.00027,2]
[326771641,1715340644512,-150.0,0.00027,2]
[326771642,1715340644522,-1418.08596,0.00027,2]
[326771643,1715340644532,-155.06484873,0.00027029,2]
[326771644,1715340644543,-155.06484873,0.00027115,2]
[326771645,1715340644553,-150.0,0.00027128,2]
[326771646,1715340644563,-157.37182555,0.00027171,2]
[326771647,1715340644573,-205.0,0.000272,2]
[326771648,1715340644584,-8095.71460549,0.00027285,2]
[326771649,1715340644593,-467.652,0.00027297,2]
[326771650,1715340644603,-4405.14270718,0.00027297,2]
[326771651,1715340644613,-293.38048445,0.00027297,2]
[326771652,1715340644624,-174.05055866,0.00027297,5]
[326771653,1715340644634,-189.07369324,0.00027297,2]
[326771654,1715340644645,-154.0995627,0.00027307,2]
[326771655,1715340644654,-200.0,0.00027381,2]
[326771656,1715340644664,-155.29811336,0.00027384,4]
[326771658,1715340644674,-2024.17258804,0.00027395,2]
[326771660,1715340644687,-1807.90931564,0.00027395,2]
[326771662,1715340644697,-129.68549556,0.00027395,2]
[326771668,1715340644754,-31.75631284,0.00027395,2]
[326771670,1715340644764,-155.0,0.00027395,2]
[326771672,1715340644774,-155.0,0.00027395,2]
[326771674,1715340644784,-175.75740478,0.00027397,4]
[326771676,1715340644794,-605.54,0.00027397,4]
[326771678,1715340644804,-500.0,0.00027397,4]
[326771680,1715340644814,-506.1795946,0.00027397,4]
[326771682,1715340644823,-629.63,0.00027397,4]
[326771684,1715340644832,-668.74,0.00027397,4]
[326771686,1715340644842,-548.18,0.00027397,4]
[326771688,1715340644851,-401.69883913,0.00027397,4]
[326771690,1715340644861,-620.32,0.00027397,4]
[326771692,1715340644870,-500.0,0.00027397,4]
[326771694,1715340644880,-500.0,0.00027397,4]
[326771696,1715340644889,-496.38554864,0.00027397,4]
[326771699,1715340644902,-12.08445136,0.00027397,4]
[326771701,1715340644912,-364.61210205,0.00027397,4]
[326771703,1715340644924,-135.38789795,0.00027397,4]
[326771705,1715340644934,-209.48830826,0.00027397,4]
[326771725,1715340646268,-274.87842701,0.00017259,2]
[326771726,1715340646278,-369.57503036,0.00017259,2]
[326771727,1715340646289,-1789.0,0.00025528,2]
[326771728,1715340646300,-290.51169174,0.00027397,4]
[326771729,1715340646309,-500.0,0.00027397,4]
[326771730,1715340646319,-500.0,0.00027397,4]
[326771731,1715340646328,-500.0,0.00027397,4]
[326771732,1715340646337,-582.85,0.00027397,4]
[326771733,1715340646347,-500.0,0.00027397,4]
[326771734,1715340646356,-1024.04,0.00027397,4]
[326771735,1715340646366,-500.0,0.00027397,4]
[326771736,1715340646375,-496.74111609,0.00027397,4]
[326771737,1715340646385,-500.0,0.00027397,4]
[326771738,1715340646395,-500.0,0.00027397,4]
[326771739,1715340646404,-518.28,0.00027397,4]
[326771740,1715340646414,-500.0,0.00027397,4]
[326771741,1715340646423,-677.73,0.00027397,4]
[326771742,1715340646432,-588.56,0.00027397,4]
[326771743,1715340646442,-500.0,0.00027397,4]
[326771744,1715340646451,-540.95880382,0.00027397,4]
[326771745,1715340646460,-504.97954149,0.00027397,4]
[326771746,1715340646470,-550.25,0.00027397,4]
[326771747,1715340646479,-500.0,0.00027397,4]
[326771748,1715340646489,-500.0,0.00027397,4]
[326771749,1715340646498,-503.97236579,0.00027397,4]
[326771750,1715340646508,-500.0,0.00027397,4]
[326771751,1715340646518,-500.0,0.00027397,4]
[326771752,1715340646527,-500.0,0.00027397,4]
[326771753,1715340646537,-500.0,0.00027397,4]
[326771754,1715340646546,-503.68025584,0.00027397,4]
[326771755,1715340646556,-500.0,0.00027397,4]
[326771756,1715340646566,-500.0,0.00027397,4]
[326771757,1715340646576,-355.30848381,0.00027397,4]
[326771758,1715340646585,-602.34,0.00027397,4]
[326771759,1715340646594,-500.0,0.00027397,4]
[326771760,1715340646604,-500.0,0.00027397,4]
[326771761,1715340646613,-538.57,0.00027397,4]
[326771762,1715340646623,-500.0,0.00027397,4]
[326771763,1715340646632,-773.31,0.00027397,4]
[326771764,1715340646641,-45.73457145,0.00027397,4]
[326771765,1715340646655,-462.1772013,0.00027397,4]
[326771766,1715340646666,-5.57822725,0.00027397,4]
[326771767,1715340646676,-500.0,0.00027397,4]
[326771768,1715340646685,-493.44478994,0.00027397,4]
[326771769,1715340646697,-89.07521006,0.00027397,4]
[326771770,1715340646706,-597.27403004,0.00027397,4]
[326771771,1715340646718,-231.79596996,0.00027397,4]
[326771772,1715340646727,-75.05023004,0.00027397,4]
[326771773,1715340646741,-424.94976996,0.00027397,4]
[326771774,1715340646751,-8.83877497,0.00027397,4]
[326771775,1715340647063,-566.37122503,0.00027397,4]
[326771776,1715340647073,-500.0,0.00027397,4]
[326771777,1715340647083,-554.19,0.00027397,4]
[326771778,1715340647093,-522.34844866,0.00027397,4]
[326771779,1715340647103,-500.0,0.00027397,4]
[326771780,1715340647112,-520.78,0.00027397,4]
[326771781,1715340647122,-500.0,0.00027397,4]
[326771782,1715340647131,-500.0,0.00027397,4]
[326771783,1715340647141,-500.0,0.00027397,4]
[326771784,1715340647150,-769.29,0.00027397,4]
[326771785,1715340647159,-500.0,0.00027397,4]
[326771786,1715340647169,-569.43,0.00027397,4]
[326771787,1715340647178,-500.0,0.00027397,4]
[326771788,1715340647187,-877.72,0.00027397,4]
[326771789,1715340647197,-500.0,0.00027397,4]
[326771790,1715340647207,-500.0,0.00027397,4]
[326771791,1715340647222,-500.0,0.00027397,4]
[326771792,1715340647232,-717.98,0.00027397,4]
[326771793,1715340647241,-500.0,0.00027397,4]
[326771794,1715340647251,-500.0,0.00027397,4]
[326771795,1715340647260,-500.0,0.00027397,4]
[326771796,1715340647270,-809.59,0.00027397,4]
[326771797,1715340647279,-500.0,0.00027397,4]
[326771798,1715340647291,-500.0,0.00027397,4]
[326771799,1715340647300,-500.0,0.00027397,4]
[326771800,1715340647310,-500.0,0.00027397,4]
[326771801,1715340647320,-500.0,0.00027397,4]
[326771802,1715340647329,-500.0,0.00027397,4]
[326771803,1715340647339,-500.0,0.00027397,4]
[326771804,1715340647348,-319.77192631,0.00027397,4]
[326771805,1715340647361,-216.21807369,0.00027397,4]
[326771806,1715340647371,-247.04476631,0.00027397,4]
[326771807,1715340647382,-252.95523369,0.00027397,4]
[326771808,1715340647392,-500.0,0.00027397,4]
[326771809,1715340647401,-500.0,0.00027397,4]
[326771810,1715340647411,-150.0,0.00027397,4]
[326771811,1715340647421,-217.03211657,0.00027397,4]
[326771812,1715340647432,-282.96788343,0.00027397,4]
[326771813,1715340647442,-500.0,0.00027397,4]
[326771814,1715340647451,-199.48262384,0.00027397,4]
[326771815,1715340647463,-300.51737616,0.00027397,4]
[326771816,1715340647473,-500.0,0.00027397,4]
[326771817,1715340647482,-500.0,0.00027397,4]
[326771818,1715340647491,-500.0,0.00027397,4]
[326771819,1715340647501,-500.0,0.00027397,4]
[326771820,1715340647510,-512.36,0.00027397,4]
[326771821,1715340647520,-603.81283432,0.00027397,4]
[326771822,1715340647530,-500.0,0.00027397,4]
[326771823,1715340647540,-726.74,0.00027397,4]
[326771824,1715340647549,-500.0,0.00027397,4]
[326771825,1715340647559,-59.5743292,0.00027397,4]
[326771826,1715340647573,-440.4256708,0.00027397,4]
[326771827,1715340647582,-519.27,0.00027397,4]
[326771828,1715340647591,-156.81633385,0.00027397,4]
[326771838,1715341832319,-882.58199019,0.00012488,2]
[326771839,1715341832328,-622.84572652,0.00012489,2]
[326771840,1715341832338,-1253.19586359,0.000125,2]
[326771841,1715341832348,-155.0,0.00012892,2]
[326771842,1715341832357,-203.65107631,0.000129,2]
[326771843,1715341832367,-151.24981179,0.000129,2]
[326771844,1715341832376,-314.52465362,0.000129,2]
[326771845,1715341832386,-151.71,0.0001299,2]
[326771846,1715341832395,-151.71,0.0001299,2]
[326771847,1715341832405,-155.11924637,0.00012998,2]
[326771848,1715341832415,-197.92584997,0.00012999,3]
[326771849,1715341832424,-1825.87335792,0.00012999,2]
[326771850,1715341832433,-150.0,0.00012999,2]
[326771851,1715341832442,-150.0,0.00012999,2]
[326771852,1715341832452,-8753.89328153,0.00013,2]
[326771853,1715341832476,-302.75411895,0.00013,2]
[326771854,1715341832492,-12486.66839561,0.00013,2]
[326771855,1715341832504,-345.41742136,0.00013,2]
[326771856,1715341832554,-5615.59479932,0.00013,2]
[326771857,1715341832566,-75963.35730703,0.00013,2]
[326771858,1715341832583,-811.05669613,0.00013,2]
[326771859,1715341832672,-756.27288357,0.00013,2]
[326771865,1715341838311,-270.87427952,0.00013,2]
[326771866,1715341838335,-9402.13629999,0.00013,2]
[326771867,1715341838347,-278.14382276,0.00013,2]
[326771868,1715341838424,-6116.53369339,0.00013,2]
[326771869,1715341838436,-4756.280333,0.00013,2]
[326771870,1715341838559,-210682.52435623,0.00013,2]
[326771871,1715341838571,-758765.33458609,0.00013,2]
[326771872,1715341838585,-3429.54974447,0.00013,2]
[326771920,1715341841972,-503.99726005,0.00013,2]
[326771921,1715341841985,-504.39596001,0.00013,2]
[326771923,1715341841997,-464.00928613,0.00013,2]
[326771937,1715341843375,-741.46147937,0.00013,2]
[326771938,1715341843600,-3158.55,0.00013,2]
[326771939,1715341843664,-3085.85,0.00013,2]
[326771940,1715341843676,-41011.95198,0.00013,2]
[326772010,1715341847657,-882.58199019,0.00012999,2]
[326772011,1715341847667,-702.82901776,0.00013,2]
[326772012,1715341865833,745.43664057,0.00011698,2]
[326772013,1715341913622,20202.52961911,0.00011698,2]
[326772014,1715341927592,20202.52961911,0.00011698,2]
[326772015,1715341941589,20202.52961911,0.00011698,2]
[326772016,1715341965612,15613.47045253,0.00011698,2]
[326772040,1715343031863,-217.14907971,0.0001259,2]
[326772042,1715343031872,-266.0155663,0.00012591,2]
[326772044,1715343031881,-882.58199019,0.00012591,2]
[326772046,1715343031890,-4966.9533638,0.00012592,2]
[326772056,1715343031972,-301.73714773,0.00012592,2]
[326772058,1715343031981,-155.60564963,0.00012616,2]
[326772060,1715343031990,-155.33195859,0.00012738,2]
[326772062,1715343032000,-9606.77909939,0.000129,2]
[326772064,1715343032018,-12818.96450061,0.000129,2]
[326772066,1715343032027,-156.75428158,0.000129,2]
[326772068,1715343032037,-12057.01710743,0.000129,2]
[326772070,1715343032047,-2004.4599,0.000129,2]
[326772072,1715343032056,-203.6510763,0.000129,2]
[326772074,1715343032065,-173.13322766,0.000129,2]
[326772077,1715343032074,-1125.36975258,0.000129,2]
[326772078,1715343032083,-195.58698962,0.000129,2]
[326772081,1715343032093,-165.17255466,0.0001299,2]
[326772083,1715343032102,-4294.2740692,0.00012997,2]
[326772085,1715343032112,-1582.70399097,0.00012998,2]
[326772086,1715343032121,-262.72038004,0.00012998,2]
[326772088,1715343032130,-155.55922332,0.00012998,2]
[326772090,1715343032139,-155.0,0.00012998,2]
[326772093,1715343032149,-1243.44223323,0.00012998,2]
[326772095,1715343032158,-313.15633728,0.00012998,2]
[326772097,1715343032168,-357.47400375,0.00012999,2]
[326772099,1715343032177,-4271.73840174,0.00012999,2]
[326772101,1715343032186,-499.99,0.00012999,2]
[326772103,1715343032197,-497959.5667322,0.00013,2]
[326772105,1715343032206,-811802.81711894,0.00013,2]
[326772107,1715343032219,-25419.99999994,0.00013,2]
[326772117,1715343037455,-63578.30786045,0.00013,2]
[326772118,1715343037467,-6003.4000001,0.00013,2]
[326772119,1715343037515,-1488.86329916,0.00013,2]
[326772120,1715343037527,-1369.29431586,0.00013,2]
[326772121,1715343037655,-2888.82905109,0.00013,2]
[326772122,1715343037683,-210682.52435623,0.00013,2]
[326772123,1715343037695,-758765.33458609,0.00013,2]
[326772124,1715343037707,-2563.85387638,0.00013,2]
[326772126,1715343037767,-18562.85297668,0.00013,2]
[326772129,1715343037778,-94885.86364949,0.00013,2]
[326772148,1715343039633,-313.57806906,0.000129,2]
[326772149,1715343039643,-386.23315111,0.00013,2]
[326772150,1715343039694,-2776.2492688,0.00013,2]
[326772151,1715343039753,-5856.43306166,0.00013,2]
[326772152,1715343039869,-2948.41847566,0.00013,2]
[326772153,1715343039929,-7403.33079288,0.00013,2]
[326772154,1715343039941,-63537.65396227,0.00013,2]
[326772155,1715343039952,-2772.157,0.00013,2]
[326772156,1715343039987,-728.05842579,0.00013,2]
[326772157,1715343039999,-861.78488582,0.00013,2]
[326772159,1715343040413,-28786.01488089,0.00013,2]
[326772160,1715343040423,-123458.16396225,0.00013,2]
[326772161,1715343040432,-1181.7383,0.00013,2]
[326772162,1715343040442,-1500.0,0.000135,3]
[326772163,1715343040451,-500.0,0.00013698,2]
[326772164,1715343040461,-12057.0171074,0.00014476,2]
[326772165,1715343040470,-500.0,0.00015365,2]
[326772166,1715343040479,-157.95,0.00015645,2]
[326772167,1715343040489,-1253.05769484,0.00015731,2]
[326772168,1715343041391,-2002.04230516,0.00015731,2]
[326772169,1715343041401,-2458.05,0.00015731,2]
[326772170,1715343041411,-840.0,0.00015731,2]
[326772171,1715343041420,-211.85,0.00015847,2]
[326772172,1715343041430,-250.0,0.00015847,2]
[326772173,1715343041439,-12057.0171074,0.00016052,2]
[326772174,1715343041449,-1500.0,0.00016069,2]
[326772175,1715343041458,-341.35,0.0001629,2]
[326772176,1715343041468,-858.64880883,0.00017,2]
[326772210,1715343045602,-882.58199019,0.00016999,2]
[326772211,1715343045612,-1815.35119117,0.00017,2]
[326772212,1715343045620,-1567.24136915,0.00017628,2]
[326772213,1715343045719,-827.50830735,0.00017628,2]
[326772214,1715343045779,-873.88559492,0.00017628,2]
[326772215,1715343045791,-737.51933105,0.00017628,2]
[326772216,1715343045802,-312.14085402,0.00017628,2]
[326772217,1715343045814,-2660.56650249,0.00017628,2]
[326772218,1715343045840,-1468.0,0.00017628,2]
[326772224,1715343053803,20202.52961911,0.00011698,2]
[326772225,1715343313268,3008.8,0.00024658,120]
[326772227,1715343558477,-882.58199019,0.00012685,2]
[326772228,1715343558500,-5268.69051153,0.00012686,2]
[326772229,1715343558525,-300.0,0.00012687,2]
[326772230,1715343558549,-4647.54174771,0.00012688,2]
[326772231,1715343558577,-1098.17284557,0.00014997,2]
[326772232,1715343558601,-536.49041607,0.00014997,2]
[326772233,1715343558624,-171.81063135,0.00014997,2]
[326772234,1715343558649,-502.04014737,0.00014997,2]
[326772235,1715343559380,-5212.63166477,0.00014998,2]
[326772236,1715343559419,-21380.04004544,0.00014999,2]
[326772249,1715344205580,575.26,0.00025,120]
[326772279,1715344231628,-155.0,0.00014981,2]
[326772282,1715344231637,-104.94301548,0.00014982,2]
[326772285,1715344231648,-340.93159344,0.00014982,2]
[326772288,1715344231657,-364.5783904,0.00014983,2]
[326772291,1715344231666,-236.6898477,0.0001499,2]
[326772293,1715344231675,-1535.34738607,0.00014997,2]
[326772295,1715344231685,-3326.69197355,0.00014998,2]
[326772296,1715344231694,-2072.19608082,0.00014999,2]
[326772300,1715344231726,-8372.80293214,0.00014999,2]
[326772302,1715344231852,-600.97461919,0.00014999,2]
[326772303,1715344231863,-1151.17894638,0.00014999,2]
[326772304,1715344231880,-1445.22698625,0.00014999,2]
[326772305,1715344231911,-562.34159793,0.00014999,2]
[326772306,1715344231923,-24652.7382116,0.00014999,2]
[326772307,1715344231932,-1038.22024424,0.00014999,2]
[326772308,1715344231942,-1192.41227948,0.00014999,2]
[326772309,1715344231951,-31276.40057526,0.00015,2]
[326772310,1715344231961,-581.0,0.000168,2]
[326772311,1715344231970,-366.57771071,0.00017,2]
[326772312,1715344231980,-298.56741175,0.00017,2]
[326772313,1715344231989,-15066.85307829,0.00017,2]
[326772314,1715344231999,-3500.94133622,0.00017283,2]
[326772315,1715344232009,-965.88462889,0.0001746,2]
[326772316,1715344232018,-1562.45443903,0.00017521,2]
[326772317,1715344232028,-1197.90306,0.00017628,2]
[326772318,1715344232037,-499.99,0.00017808,2]
[326772319,1715344232046,-250.0,0.0001793,2]
[326772320,1715344232056,-452.96,0.00018,2]
[326772321,1715344232065,-328.0,0.00018002,2]
[326772324,1715344232075,-200.0,0.00018025,2]
[326772327,1715344232085,-165.44,0.00018226,2]
[326772330,1715344232094,-250.0,0.00018416,2]
[326772332,1715344232103,-209.85,0.0001842,2]
[326772335,1715344232112,-284.45,0.00018452,2]
[326772336,1715344232122,-159.31,0.0001847,2]
[326772338,1715344232131,-672.0,0.00018495,2]
[326772340,1715344232140,-159.31,0.00018951,2]
[326772342,1715344232149,-155.0,0.00019,2]
[326772344,1715344232158,-5000.0,0.0001917,2]
[326772346,1715344232168,-1260.2177,0.00019171,2]
[326772348,1715344232178,-150.69943881,0.00019171,2]
[326772350,1715344232188,-159.47,0.00019178,2]
[326772352,1715344232198,-158.31,0.00019178,2]
[326772355,1715344232208,-157.57,0.00019178,2]
[326772357,1715344232218,-159.18,0.00019178,2]
[326772359,1715344232226,-241.65,0.00019261,3]
[326772360,1715344232235,-724.95,0.00019261,3]
[326772362,1715344232244,-1062.48242938,0.00019269,2]
[326772364,1715344232253,-5729.90362163,0.00019269,2]
[326772366,1715344232263,-363.8576107,0.00019269,2]
[326772368,1715344232273,-272.59133894,0.00019269,2]
[326772370,1715344232284,-1107.01465334,0.00019269,2]
[326772372,1715344232293,-192.79364736,0.00019269,2]
[326772374,1715344232303,-184.31971633,0.00019269,2]
[326772377,1715344232312,-155.0,0.00019269,2]
[326772379,1715344232323,-392.43718635,0.00019269,2]
[326772381,1715344232332,-10826.59189326,0.00019271,2]
[326772384,1715344232351,-1075.9549519,0.00019271,2]
[326772386,1715344232362,-373.00390906,0.00019271,2]
[326772388,1715344232373,-2657.2665935,0.00019271,2]
[326772390,1715344232385,-56119.93212533,0.00019271,2]
[326772392,1715344232396,-5800.0,0.00019271,2]
[326772395,1715344232408,-6329.55979309,0.00019271,2]
[326772397,1715344232418,-1870.000025,0.00019271,2]
[326772400,1715344232442,-4903.46776207,0.00019271,2]
[326772412,1715344237700,-364.5783904,0.0001498,2]
[326772413,1715344237714,-10044.22294679,0.00019271,2]
[326772414,1715344237723,-436.35498635,0.00019332,2]
[326772415,1715344237733,-159.31,0.00019432,2]
[326772416,1715344237742,-7419.79,0.00019471,2]
[326772417,1715344237753,-500.0,0.000198,2]
[326772418,1715344237763,-861.5014495,0.0002,2]
[326772419,1715344237772,-155.81615552,0.0002,2]
[326772420,1715344237783,-155.0,0.0002,2]
[326772421,1715344237793,-155.0,0.0002,2]
[326772422,1715344237804,-358.69017328,0.0002,2]
[326772423,1715344237814,-1322.0,0.000202,2]
[326772424,1715344237823,-328.0,0.00020252,2]
[326772425,1715344237833,-150.69943881,0.00020396,2]
[326772426,1715344237842,-565.67049523,0.00020546,5]
[326772427,1715344237851,-483.3,0.00020631,3]
[326772428,1715344237860,-190854.0682,0.00020681,2]
[326772429,1715344237869,-672.0,0.00020807,2]
[326772430,1715344237879,-499.68290404,0.000209,2]
[326772431,1715344237888,-2215.11343661,0.00021,2]
[326772432,1715344237897,-366.96112777,0.00021,2]
[326772433,1715344237906,-155.05417632,0.00021489,2]
[326772434,1715344237916,-170.0,0.00021529,2]
[326772435,1715344237925,-150.69943881,0.00021621,2]
[326772436,1715344237935,-156.18766556,0.00021657,2]
[326772437,1715344237944,-178.37516632,0.00021685,2]
[326772438,1715344237952,-155.10961967,0.00021718,2]